bitfinex-derivatives/quotes_ETHF0:USTF0_20210406
["timestamp","ask_amount","ask_price","bid_price","bid_amount"]
[1617728258219,70.9783,2100.1,2099.7,5.86]
[1617728259731,2.90695,2099.8,2099.7,5.86]
[1617728259920,5.08455,2099.8,2099.7,5.86]
[1617728261630,2.90695,2099.8,2099.7,5.86]
[1617728272028,70.9783,2100.1,2099.7,5.86]
[1617728273429,0.9622,2101.6,2099.7,5.86]
[1617728273631,3.1,2101.9,2099.7,5.86]
[1617728273831,3.1,2101.9,2100.5,2.90695]
[1617728274131,74.5455,2101.5,2100.5,2.90695]
[1617728274331,74.5455,2101.5,2100.6,5.87]
[1617728274632,76.6451,2101.5,2100.6,5.87]
[1617728275134,2.0,2101.4,2100.6,5.87]
[1617728275734,2.0,2101.4,2099.4,5.73]
[1617728275935,2.0,2101.4,2100.0,2.90695]
[1617728276138,2.0,2101.4,2100.7,5.76]
[1617728276336,2.0,2101.4,2100.1,3.29]
[1617728276636,2.0,2101.4,2100.8,5.74]
[1617728276936,32.0,2101.4,2100.2,5.75]
[1617728277337,75.6414,2101.3,2100.9,5.72]
[1617728277539,75.6414,2101.3,2099.1,2.0]
[1617728277540,32.0,2101.2,2100.3,5.65]
[1617728278037,4.85945,2100.4,2099.5,2.90695]
[1617728278337,4.85945,2100.4,2099.6,5.8]
[1617728279940,5.16655,2099.7,2099.6,5.8]
[1617728282441,57.8676,2100.0,2099.6,5.8]
[1617728283843,57.8676,2100.0,2099.9,2.90695]
[1617728284243,57.8676,2100.0,2099.9,8.65695]
[1617728285843,60.77455,2100.0,2099.9,8.65695]
[1617728286844,57.8676,2100.0,2099.9,8.65695]
[1617728291149,57.8676,2100.0,2099.9,10.65695]
[1617728292052,52.2866,2100.0,2099.9,10.65695]
[1617728292252,52.2866,2100.0,2099.9,10.88565509]
[1617728292772,2.0,2102.4,2099.9,10.88565509]
[1617728292976,56.702,2102.0,2099.9,10.88565509]
[1617728293256,56.702,2102.0,2100.0,0.22853941]
[1617728293654,56.702,2102.0,2100.1,5.93]
[1617728293865,56.702,2102.0,2100.2,2.0]
[1617728294057,56.702,2102.0,2101.0,5.15525]
[1617728294273,56.702,2102.0,2101.1,3.38]
[1617728296058,56.702,2102.0,2101.5,5.78425]
[1617728296257,56.702,2102.0,2101.6,5.9]
[1617728298062,2.90695,2101.7,2101.6,5.9]
[1617728299668,4.84305,2101.7,2101.6,5.9]
[1617728299866,4.84305,2101.7,2101.1,5.91]
[1617728300066,4.84305,2101.7,2099.8,4.86188569]
[1617728300067,2.90695,2101.2,2099.8,4.86188569]
[1617728300270,5.78305,2101.2,2099.6,4.86402436]
[1617728300467,5.78305,2101.2,2100.3,5.98]
[1617728300667,75.643,2100.9,2100.3,5.98]
[1617728300868,75.643,2100.9,2099.7,5.92]
[1617728301069,75.643,2100.9,2100.4,5.84]
[1617728301468,75.643,2100.9,2099.8,3.39]
[1617728301668,75.643,2100.9,2100.5,0.21]
[1617728302088,2.90695,2100.6,2100.2,2.90695]
[1617728302371,2.90695,2100.6,2100.3,0.44]
[1617728303171,2.90695,2100.6,2099.6,5.75]
[1617728303371,2.90695,2100.6,2099.7,4.87405214]
[1617728303572,2.90695,2100.6,2100.4,5.79]
[1617728303970,2.5925,2100.7,2100.0,2.90695]
[1617728304270,2.5925,2100.7,2100.5,5.91]
[1617728304470,2.5925,2100.7,2100.0,2.90695]
[1617728304471,2.5925,2100.7,2100.1,6.0]
[1617728304972,2.5925,2100.7,2100.6,5.73]
[1617728305170,2.5925,2100.7,2100.1,5.76]
[1617728305371,2.5925,2100.7,2100.6,5.82]
[1617728305672,2.5925,2100.7,2100.1,5.83]
[1617728305972,2.90695,2100.2,2100.0,2.90695]
[1617728306174,5.80985,2100.2,2100.0,2.90695]
[1617728306382,5.80985,2100.2,2100.1,5.82]
[1617728307676,5.80985,2100.2,2099.8,5.87]
[1617728307976,5.80985,2100.2,2100.1,5.91]
[1617728308476,5.80985,2100.2,2100.0,0.55]
[1617728308777,5.80985,2100.2,2100.1,5.86]
[1617728309275,5.80985,2100.2,2100.0,5.82]
[1617728309476,5.80985,2100.2,2100.1,5.79]
[1617728309677,5.80985,2100.2,2100.0,5.98]
[1617728310080,5.80985,2100.2,2100.1,5.83]
[1617728310291,75.643,2100.9,2100.0,5.98]
[1617728310577,75.643,2100.9,2100.1,5.89]
[1617728310984,75.643,2100.9,2100.0,5.86]
[1617728311181,75.643,2100.9,2100.2,5.84]
[1617728311484,75.643,2100.9,2100.0,10.62757204]
[1617728311788,75.643,2100.9,2100.3,5.9]
[1617728311981,75.643,2100.9,2100.6,2.90695]
[1617728312481,75.643,2100.9,2100.7,3.02]
[1617728314088,2.90695,2100.8,2100.7,3.02]
[1617728320293,75.643,2100.9,2100.5,5.71]
[1617728320493,75.643,2100.9,2100.7,5.77]
[1617728320795,75.643,2100.9,2100.5,8.8657]
[1617728321094,75.643,2100.9,2100.8,5.8]
[1617728321493,75.643,2100.9,2100.7,4.8929237]
[1617728321694,75.643,2100.9,2100.7,10.8729237]
[1617728321896,75.643,2100.9,2100.8,5.94]
[1617728322195,78.54995,2100.9,2100.8,2.90695]
[1617728322396,78.54995,2100.9,2100.8,8.66695]
[1617728325197,78.54995,2100.9,2100.8,13.56251899]
[1617728331811,75.643,2100.9,2100.8,13.56251899]
[1617728335008,75.643,2100.9,2100.8,8.66695]
[1617728335706,75.643,2100.9,2100.8,13.55766823]
[1617728336006,75.643,2100.9,2100.8,8.66695]
[1617728337712,108.0615,2103.3,2100.8,8.66695]
[1617728337713,0.9458,2102.7,2100.8,14.63545506]
[1617728337908,2.0,2102.9,2100.8,14.63545506]
[1617728338109,67.7264,2102.8,2101.0,5.8394916]
[1617728338308,67.7264,2102.8,2101.6,2.2589]
[1617728338611,2.0,2102.7,2101.8,5.75]
[1617728338807,2.0,2102.7,2101.7,5.74]
[1617728339107,2.0,2102.7,2101.9,5.84]
[1617728339507,2.0,2102.7,2101.8,5.8]
[1617728339807,2.0,2102.7,2102.0,5.73]
[1617728340109,2.0,2102.7,2101.9,5.8]
[1617728340308,2.90695,2102.1,2101.9,5.8]
[1617728340507,2.90695,2102.1,2101.2,3.39]
[1617728340708,2.90695,2102.1,2102.0,5.7]
[1617728341113,2.90695,2102.1,2101.1,2.90695]
[1617728341114,2.90695,2102.1,2101.2,8.0863]
[1617728341609,2.90695,2102.1,2102.0,5.73]
[1617728341809,2.90695,2102.1,2101.3,5.92]
[1617728342018,2.90695,2102.1,2102.0,5.77]
[1617728342509,2.90695,2102.1,2101.8,3.37]
[1617728342710,2.90695,2102.1,2102.0,5.49]
[1617728343112,2.90695,2102.1,2101.9,5.73]
[1617728343311,2.90695,2102.1,2102.0,5.96]
[1617728343710,2.90695,2102.1,2101.1,5.7]
[1617728343911,2.90695,2102.1,2102.0,5.12]
[1617728344212,2.90695,2102.1,2101.5,2.90695]
[1617728344611,2.90695,2102.1,2102.0,5.72]
[1617728344912,2.90695,2102.1,2101.6,5.33]
[1617728345111,2.90695,2102.1,2102.0,5.97]
[1617728345414,2.90695,2102.1,2101.6,5.81]
[1617728345812,2.90695,2102.1,2102.0,5.9]
[1617728346018,2.90695,2102.1,2101.6,5.93]
[1617728346314,2.90695,2101.7,2101.1,4.878165]
[1617728346629,2.90695,2101.7,2101.0,4.87909397]
[1617728346814,2.90695,2101.7,2101.6,5.73]
[1617728347014,2.90695,2101.7,2101.2,2.88]
[1617728347329,2.90695,2101.7,2101.6,5.99]
[1617728347715,2.90695,2101.7,2101.0,5.13949995]
[1617728347716,2.90695,2101.7,2101.0,4.87949995]
[1617728348017,2.90695,2101.7,2101.1,5.29]
[1617728348515,2.7773,2102.4,2101.2,2.90695]
[1617728348715,2.7773,2102.4,2101.3,5.92]
[1617728349016,2.0,2102.3,2101.3,5.92]
[1617728349632,2.0,2102.3,2101.1,5.79]
[1617728350017,2.0,2102.3,2101.4,5.81]
[1617728350221,2.0,2102.3,2101.2,4.95]
[1617728350417,2.90695,2101.3,2101.2,4.95]
[1617728350763,5.89495,2101.3,2101.0,5.94]
[1617728350964,5.89495,2101.3,2101.2,5.85]
[1617728351134,5.89495,2101.3,2101.0,5.91]
[1617728351520,5.89495,2101.3,2101.2,5.84]
[1617728351820,5.89495,2101.3,2101.0,6.7239]
[1617728352222,5.89495,2101.3,2101.0,0.9439]
[1617728352521,5.89495,2101.3,2101.1,5.99]
[1617728352928,5.89495,2101.3,2100.9,5.87]
[1617728353223,5.89495,2101.3,2101.2,5.99]
[1617728353522,5.89495,2101.3,2100.9,5.94]
[1617728353923,5.89495,2101.3,2101.2,5.84]
[1617728354121,5.89495,2101.3,2100.9,5.84]
[1617728354423,2.988,2101.3,2101.2,5.98]
[1617728354828,2.988,2101.3,2100.9,5.99]
[1617728355121,2.988,2101.3,2100.8,4.88221794]
[1617728355122,2.988,2101.3,2101.2,5.81]
[1617728355324,2.988,2101.3,2100.9,5.86]
[1617728355824,0.9505,2101.5,2101.2,5.14]
[1617728356023,3.1446,2101.5,2101.0,5.84]
[1617728356222,2.0,2101.4,2101.3,5.93]
[1617728356525,4.90695,2101.4,2100.7,0.23]
[1617728356723,4.90695,2101.4,2101.1,4.71]
[1617728356924,4.90695,2101.4,2100.5,4.88870392]
[1617728357123,2.90695,2101.4,2100.8,5.93]
[1617728357423,2.90695,2101.4,2101.2,5.88]
[1617728357623,2.90695,2101.4,2100.6,8.1778355]
[1617728357824,2.90695,2101.4,2100.9,5.25]
[1617728358025,2.90695,2101.4,2100.7,5.73]
[1617728358224,2.90695,2101.4,2101.0,5.83]
[1617728358427,2.90695,2101.1,2101.0,5.83]
[1617728358627,2.90695,2101.1,2100.7,5.95]
[1617728359826,2.90695,2101.1,2100.7,10.83805151]
[1617728360226,2.90695,2101.1,2100.7,4.88805151]
[1617728360427,2.90695,2101.1,2101.0,2.90695]
[1617728360629,2.90695,2101.1,2101.0,5.79985]
[1617728360830,2.90695,2101.1,2101.0,8.88985]
[1617728365234,32.0,2102.6,2101.0,8.88985]
[1617728365736,2.0,2102.6,2101.0,13.76516313]
[1617728366440,2.0,2102.6,2101.1,4.87455464]
[1617728366636,2.0,2102.6,2101.5,5.76695]
[1617728366937,2.0,2102.6,2101.6,5.78]
[1617728368540,2.90695,2101.7,2101.6,5.78]
[1617728373448,0.9562,2102.8,2101.6,5.78]
[1617728373653,0.9562,2102.8,2101.6,7.8671]
[1617728374648,2.90695,2101.7,2101.6,7.8671]
[1617728378957,2.90695,2101.7,2101.6,12.74162975]
[1617728380564,2.90695,2101.7,2101.6,7.8671]
[1617728380760,2.90695,2101.7,2101.6,5.78]
[1617728382960,2.9562,2102.8,2101.6,5.78]
[1617728383160,2.9562,2102.8,2101.6,8.1974]
[1617728383461,2.9562,2102.8,2101.6,13.07626867]
[1617728383660,30.0,2102.7,2101.6,13.07626867]
[1617728383861,34.5005,2102.7,2101.6,13.07626867]
[1617728384063,34.5005,2102.7,2101.6,8.1974]
[1617728384261,34.5005,2102.7,2101.6,5.78]
[1617728384663,2.90695,2101.7,2101.5,5.72]
[1617728385062,2.90695,2101.7,2101.6,5.86]
[1617728385462,73.4817,2101.6,2101.4,5.82]
[1617728385863,73.4817,2101.6,2101.3,5.82]
[1617728386063,73.4817,2101.6,2101.5,5.86]
[1617728386464,73.4817,2101.6,2101.3,5.9]
[1617728388565,2.90695,2101.4,2101.3,5.9]
[1617728388985,5.28455,2101.4,2101.3,5.9]
[1617728389966,5.28455,2101.4,2101.2,3.31]
[1617728390167,5.28455,2101.4,2101.3,5.63]
[1617728390466,5.28455,2101.4,2101.2,5.85]
[1617728391772,2.90695,2101.4,2101.2,5.85]
[1617728396173,2.90695,2101.4,2101.2,10.73189745]
[1617728396672,2.90695,2101.4,2101.2,4.88189745]
[1617728396872,2.90695,2101.4,2101.3,5.79]
[1617728398673,2.90695,2101.4,2101.2,7.07686962]
[1617728398873,2.90695,2101.4,2101.3,5.97]
[1617728399374,2.90695,2101.4,2101.3,10.85574412]
[1617728399876,2.90695,2101.4,2101.2,11.86880083]
[1617728400080,2.90695,2101.4,2101.3,5.79]
[1617728400575,2.90695,2101.4,2101.2,5.96880083]
[1617728400875,2.90695,2101.4,2101.3,5.97]
[1617728401876,2.90695,2101.4,2101.2,5.76]
[1617728402379,2.90695,2101.4,2101.3,5.96992343]
[1617728402577,2.90695,2101.4,2101.3,5.91]
[1617728403177,2.90695,2101.4,2101.2,5.74]
[1617728403377,2.90695,2101.4,2101.3,5.94]
[1617728403780,2.90695,2101.4,2101.2,5.95]
[1617728403978,2.90695,2101.4,2101.1,2.90695]
[1617728403979,2.90695,2101.4,2101.3,5.88]
[1617728404280,2.90695,2101.4,2101.2,5.88]
[1617728405582,2.90695,2101.4,2101.3,5.96926061]
[1617728405781,2.90695,2101.4,2101.3,11.68926061]
[1617728411885,2.90695,2101.4,2101.3,5.72]
[1617728414786,2.90695,2101.4,2101.2,5.9]
[1617728414988,2.90695,2101.4,2101.3,5.94]
[1617728415189,2.90695,2101.4,2101.2,5.96]
[1617728415588,2.90695,2101.4,2101.3,5.81]
[1617728415800,2.90695,2101.4,2101.2,5.83]
[1617728416101,2.90695,2101.4,2101.3,5.83]
[1617728416489,2.90695,2101.4,2101.2,5.87]
[1617728416699,2.90695,2101.4,2101.3,5.95]
[1617728416989,2.90695,2101.4,2101.2,5.77]
[1617728419090,5.22455,2101.4,2101.1,5.93]
[1617728419490,5.22455,2101.4,2100.2,2.90695]
[1617728419491,5.22455,2101.4,2101.3,5.87]
[1617728419691,5.22455,2101.4,2101.2,5.97386299]
[1617728419991,5.22455,2101.4,2101.3,5.74]
[1617728420192,2.90695,2101.4,2101.3,5.74]
[1617728420793,3.87085,2101.4,2101.3,5.74]
[1617728420992,2.90695,2101.4,2101.3,5.74]
[1617728421795,2.90695,2101.4,2101.3,11.71106367]
[1617728422294,2.90695,2101.4,2101.1,2.9262]
[1617728422295,2.90695,2101.4,2101.2,11.77200597]
[1617728422495,2.90695,2101.4,2101.3,5.97]
[1617728422796,2.90695,2101.4,2101.2,5.97200597]
[1617728423094,2.90695,2101.4,2101.3,5.76]
[1617728423695,2.90695,2101.4,2101.3,11.73167078]
[1617728424196,2.90695,2101.4,2101.3,5.97167078]
[1617728424596,2.90695,2101.4,2101.3,11.71167078]
[1617728428200,2.90695,2101.4,2101.3,14.11207078]
[1617728428718,2.90695,2101.4,2101.3,8.1404]
[1617728428939,79.5869,2101.8,2101.3,8.1404]
[1617728429368,79.5869,2101.8,2101.3,10.1404]
[1617728429567,79.5869,2101.8,2101.4,7.05945352]
[1617728429707,79.5869,2101.8,2101.4,7.28866156]
[1617728429905,79.5869,2101.8,2101.6,7.05464422]
[1617728430619,0.9562,2102.8,2101.7,5.71]
[1617728430805,0.9562,2102.8,2102.2,2.90695]
[1617728431005,0.9562,2102.8,2102.3,4.8832331]
[1617728431219,0.9562,2102.8,2102.3,10.8632331]
[1617728431407,0.9562,2102.8,2102.3,5.98]
[1617728431906,0.9562,2102.8,2102.3,10.86313713]
[1617728432712,0.9562,2102.8,2102.5,4.8773705]
[1617728433010,0.9562,2102.8,2102.7,5.37325]
[1617728433211,0.9562,2102.8,2102.7,11.30325]
[1617728433511,0.9562,2102.8,2102.7,16.1776019]
[1617728434618,0.9562,2102.8,2102.7,11.30325]
[1617728435711,0.9562,2102.8,2102.7,17.2613725]
[1617728436210,0.9562,2102.8,2102.7,13.30325]
[1617728436409,0.9562,2102.8,2102.7,20.3387696]
[1617728437911,0.6475,2102.8,2102.7,20.3387696]
[1617728438211,0.574,2102.8,2102.7,20.3387696]
[1617728438615,0.0388,2102.8,2102.7,20.3387696]
[1617728438913,2.90695,2103.3,2102.7,20.3387696]
[1617728439413,2.90695,2103.3,2102.7,13.30325]
[1617728441016,2.90695,2103.3,2103.2,2.90695]
[1617728441218,2.90695,2103.3,2103.2,5.49315]
[1617728441514,2.90695,2103.3,2103.2,11.26315]
[1617728444317,72.1656,2104.8,2103.2,11.26315]
[1617728445017,3.86885,2103.9,2103.8,2.90695]
[1617728445217,3.86885,2103.9,2103.8,5.36955]
[1617728445417,3.86885,2103.9,2103.8,11.12955]
[1617728451425,3.86885,2103.9,2103.8,8.2226]
[1617728451724,3.86885,2103.9,2103.8,5.76]
[1617728451925,3.86885,2103.9,2103.8,4.3546]
[1617728452224,3.86885,2103.9,2102.3,5.72]
[1617728452625,3.86885,2103.9,2102.2,4.98]
[1617728452825,3.86885,2103.9,2102.4,5.88]
[1617728453226,0.9619,2103.9,2103.0,2.90695]
[1617728453627,0.9619,2103.9,2103.1,2.84]
[1617728455132,0.9619,2103.9,2103.4,2.90695]
[1617728455532,0.9619,2103.9,2103.5,5.94]
[1617728456535,0.9619,2103.9,2102.4,5.86]
[1617728456735,3.6072,2103.9,2102.4,5.86]
[1617728456937,3.6072,2103.9,2103.6,5.73]
[1617728457237,2.90695,2103.7,2103.1,2.90695]
[1617728457636,2.90695,2103.7,2103.2,0.49]
[1617728459136,3.6072,2103.9,2103.2,0.49]
[1617728459137,2.90695,2103.3,2103.2,0.49]
[1617728459538,5.73775,2103.3,2103.2,0.49]
[1617728460439,5.73775,2103.3,2101.9,5.9]
[1617728460840,5.73775,2103.3,2103.2,3.29]
[1617728461040,5.73775,2103.3,2101.6,2.0]
[1617728461240,2.8308,2103.3,2102.5,2.90695]
[1617728461441,2.0,2103.8,2103.2,5.7]
[1617728461641,2.0,2103.8,2102.6,3.16]
[1617728462041,2.0,2103.8,2103.3,5.97]
[1617728462243,2.0,2103.8,2102.6,5.86]
[1617728462651,0.9619,2103.9,2103.4,5.9]
[1617728462943,0.9619,2103.9,2102.6,5.79]
[1617728463144,0.9619,2103.9,2103.5,5.88]
[1617728463544,0.9619,2103.9,2103.0,2.90695]
[1617728463744,0.9619,2103.9,2103.6,5.74]
[1617728464051,0.9619,2103.9,2103.0,2.90695]
[1617728464256,0.9619,2103.9,2103.1,5.81]
[1617728464452,0.9619,2103.9,2103.7,5.86]
[1617728464650,0.9619,2103.9,2103.0,2.90695]
[1617728464846,3.2236,2103.9,2103.1,5.89]
[1617728465147,6.13055,2103.9,2103.8,5.8]
[1617728465345,6.13055,2103.9,2103.0,2.90695]
[1617728465546,6.13055,2103.9,2103.2,5.91]
[1617728465845,6.13055,2103.9,2103.1,5.79]
[1617728466047,6.13055,2103.9,2103.3,5.8]
[1617728466245,6.13055,2103.9,2103.1,5.88]
[1617728466645,6.13055,2103.9,2103.4,5.71]
[1617728467056,6.13055,2103.9,2103.1,5.72]
[1617728467248,2.90695,2103.2,2103.1,5.72]
[1617728471754,0.9619,2103.9,2103.1,5.72]
[1617728471955,0.9619,2103.9,2103.1,7.6619]
[1617728472955,0.9619,2103.9,2103.1,5.72]
[1617728473355,2.90695,2103.2,2103.1,5.72]
[1617728477562,0.9619,2103.9,2103.1,5.72]
[1617728478466,0.9619,2103.9,2102.2,0.9402]
[1617728478671,3.2516,2103.9,2102.3,3.4]
[1617728478868,3.2516,2103.9,2103.2,5.55]
[1617728479065,2.0,2103.8,2101.7,5.6]
[1617728479281,2.0,2103.8,2102.8,2.90695]
[1617728479282,2.90695,2102.9,2102.8,2.90695]
[1617728479667,2.90695,2102.9,2102.8,8.78695]
[1617728482370,0.9619,2103.9,2102.8,8.78695]
[1617728482573,0.9619,2103.9,2102.8,11.03035]
[1617728483374,0.9619,2103.9,2103.5,2.90695]
[1617728483774,0.9619,2103.9,2103.6,5.9]
[1617728485376,0.9619,2103.9,2103.8,2.90695]
[1617728485776,0.9619,2103.9,2103.8,7.63095]
[1617728485975,0.9619,2103.9,2103.8,5.94165]
[1617728486679,0.9619,2103.9,2103.8,4.27485]
[1617728486885,0.9619,2103.9,2103.8,4.04515]
[1617728487277,3.86885,2103.9,2103.8,4.04515]
[1617728487882,3.86885,2103.9,2103.8,2.15745]
[1617728488381,3.86885,2103.9,2103.8,1.88775]
[1617728488680,3.86885,2103.9,2103.8,0.75045]
[1617728488880,3.86885,2103.9,2103.8,0.29285]
[1617728491584,3.86885,2103.9,2103.8,0.02315]
[1617728501501,3.86885,2103.9,2103.8,2.9301]
[1617728502111,3.86885,2103.9,2103.8,0.02315]
[1617728502312,3.86885,2103.9,2103.1,1.8381]
[1617728502500,3.86885,2103.9,2102.7,2.0]
[1617728502695,3.86885,2103.9,2103.8,5.96]
[1617728502896,3.86885,2103.9,2103.2,5.95]
[1617728503195,6.76705,2103.9,2103.8,5.83]
[1617728503595,6.76705,2103.9,2103.3,2.90695]
[1617728503796,6.76705,2103.9,2103.4,5.74]
[1617728504798,3.86885,2103.9,2103.4,5.74]
[1617728505501,2.90695,2103.5,2103.4,5.74]
[1617728516318,0.9619,2103.9,2103.4,8.1152]
[1617728517218,0.9619,2103.9,2103.5,2.0]
[1617728517418,0.9619,2103.9,2103.5,2.9387]
[1617728517620,0.9619,2103.9,2103.8,8.84320757]
[1617728518019,0.9619,2103.9,2103.8,14.81320757]
[1617728518821,61.0567,2104.2,2103.8,8.87695]
[1617728519221,61.0567,2104.2,2104.0,5.93264494]
[1617728519623,61.0567,2104.2,2104.1,8.87695]
[1617728520223,61.0567,2104.2,2104.1,14.810645]
[1617728524058,61.0567,2104.2,2104.1,8.87695]
[1617728525535,61.0567,2104.2,2104.1,14.80957372]
[1617728526331,61.0567,2104.2,2104.1,8.87695]
[1617728526932,61.0567,2104.2,2104.1,14.80755579]
[1617728528733,61.0567,2104.2,2104.1,8.87695]
[1617728538973,61.0567,2104.2,2104.1,5.97]
[1617728539365,61.0567,2104.2,2104.0,5.76]
[1617728539650,91.0567,2104.2,2104.1,5.86]
[1617728539852,91.0567,2104.2,2104.0,5.75]
[1617728540051,93.0567,2104.2,2103.2,4.84688879]
[1617728540251,93.0567,2104.2,2103.0,2.90695]
[1617728540652,93.0567,2104.2,2103.1,5.81]
[1617728541251,32.0,2104.2,2103.1,5.81]
[1617728542152,2.90695,2103.2,2103.1,5.81]
[1617728542352,4.93585,2103.2,2103.1,5.81]
[1617728542752,4.93585,2103.2,2102.9,5.89]
[1617728543154,4.93585,2103.2,2102.5,5.93075292]
[1617728543155,4.93585,2103.2,2103.1,5.71]
[1617728543351,4.93585,2103.2,2102.9,5.72]
[1617728543752,34.93585,2103.2,2103.1,5.44]
[1617728543954,34.93585,2103.2,2102.7,5.87]
[1617728544152,34.93585,2103.2,2103.0,5.88]
[1617728544353,36.93585,2103.2,2103.1,5.76]
[1617728544554,36.93585,2103.2,2102.8,5.84]
[1617728544955,36.93585,2103.2,2103.1,5.89]
[1617728545155,36.93585,2103.2,2102.9,5.9]
[1617728545457,36.93585,2103.2,2102.4,5.59]
[1617728545757,36.93585,2103.2,2103.0,5.84]
[1617728546069,36.93585,2103.2,2102.4,5.93]
[1617728546455,36.93585,2103.2,2103.1,5.82]
[1617728546655,36.93585,2103.2,2102.4,5.94]
[1617728546856,36.93585,2103.2,2102.8,5.82]
[1617728547058,36.93585,2103.2,2103.1,5.97]
[1617728547258,36.93585,2103.2,2102.4,5.75]
[1617728547657,36.93585,2103.2,2102.9,5.82]
[1617728547860,36.93585,2103.2,2102.4,5.78]
[1617728548058,2.90695,2102.5,2102.4,5.78]
[1617728549860,2.90695,2102.5,2102.4,6.7182]
[1617728550061,2.90695,2102.5,2102.4,5.78]
[1617728550864,2.90695,2102.5,2102.3,10.78925292]
[1617728551064,2.90695,2102.5,2102.4,5.88]
[1617728551465,2.90695,2102.5,2102.3,4.85925292]
[1617728551665,2.90695,2102.5,2102.4,5.94]
[1617728552067,2.90695,2102.5,2102.4,8.84695]
[1617728552268,2.90695,2102.5,2102.4,13.70563063]
[1617728552669,2.90695,2102.5,2102.4,2.90695]
[1617728552968,2.90695,2102.5,2102.4,8.14695]
[1617728554675,2.90695,2102.5,2102.4,13.0027047]
[1617728556074,2.90695,2102.5,2102.4,10.0957547]
[1617728556273,2.90695,2102.5,2102.4,5.24]
[1617728556573,2.90695,2102.5,2102.3,4.85584617]
[1617728556780,5.43475,2102.5,2102.3,4.85584617]
[1617728556975,5.43475,2102.5,2102.4,5.94]
[1617728558076,2.90695,2102.5,2102.4,5.94]
[1617728560476,2.90695,2102.5,2102.3,5.84]
[1617728560680,2.90695,2102.5,2102.4,5.97]
[1617728561076,2.90695,2102.5,2102.3,10.66276963]
[1617728561280,2.90695,2102.5,2102.4,5.72]
[1617728561678,2.90695,2102.5,2102.3,4.85276963]
[1617728561879,2.90695,2102.5,2102.4,5.72]
[1617728563078,3.86305,2102.5,2102.4,5.72]
[1617728563279,2.90695,2102.5,2102.4,5.72]
[1617728565381,2.90695,2102.5,2102.3,5.98]
[1617728565783,2.90695,2102.5,2102.4,5.71]
[1617728565983,2.90695,2102.5,2102.3,5.95]
[1617728566383,2.90695,2102.5,2102.2,5.8]
[1617728566585,2.90695,2102.5,2102.1,7.74857436]
[1617728566785,2.90695,2102.5,2102.4,5.78]
[1617728566985,2.90695,2102.5,2102.2,5.8]
[1617728567185,2.90695,2102.5,2102.1,7.74857436]
[1617728567385,2.90695,2102.5,2102.4,5.94]
[1617728567585,2.90695,2102.5,2102.2,5.93]
[1617728567988,2.90695,2102.5,2102.1,7.74857436]
[1617728567989,2.90695,2102.5,2102.4,5.87]
[1617728568188,2.90695,2102.5,2102.2,5.76]
[1617728569091,3.86665,2102.5,2102.2,5.76]
[1617728569390,2.90695,2102.5,2102.2,5.76]
[1617728574496,35.37605,2102.5,2102.2,5.76]
[1617728575698,35.37605,2102.5,2101.9,5.89]
[1617728575996,37.37605,2102.5,2102.3,4.91]
[1617728576196,37.37605,2102.5,2101.8,5.9]
[1617728576396,2.90695,2101.9,2101.2,7.75810375]
[1617728576596,2.90695,2101.9,2101.3,2.49]
[1617728576797,2.90695,2101.9,2101.5,5.94]
[1617728576996,2.90695,2101.9,2101.2,2.90695]
[1617728577196,2.90695,2101.9,2101.3,5.96]
[1617728578296,2.90695,2101.4,2101.3,5.96]
[1617728580022,5.54385,2101.4,2101.3,5.96]
[1617728581117,2.90695,2101.4,2101.3,5.96]
[1617728581317,30.0,2102.7,2101.3,5.96]
[1617728581529,2.0,2102.8,2101.3,8.7287]
[1617728581931,2.0,2102.8,2101.3,13.58071854]
[1617728582140,30.0,2103.2,2101.3,13.58071854]
[1617728582329,30.0,2103.2,2101.4,4.85051704]
[1617728582533,30.0,2103.2,2102.3,2.90695]
[1617728582725,30.0,2103.2,2102.3,5.60725]
[1617728582919,3.1,2103.4,2102.4,5.82]
[1617728583119,2.05,2104.0,2102.4,5.82]
[1617728584405,2.05,2104.0,2103.3,2.90695]
[1617728584603,2.05,2104.0,2103.3,5.19285]
[1617728584803,2.05,2104.0,2103.4,5.95]
[1617728585811,3.0043,2104.0,2103.4,5.95]
[1617728586105,0.05,2104.0,2103.4,5.95]
[1617728586305,2.0,2103.9,2103.4,5.95]
[1617728586505,2.90695,2103.5,2103.4,5.95]
[1617728588306,2.90695,2103.5,2102.5,5.84]
[1617728588620,2.90695,2103.5,2102.1,5.9189232]
[1617728588621,2.90695,2103.5,2103.4,10.87825]
[1617728588812,2.90695,2103.5,2103.4,5.02825]
[1617728589108,2.90695,2103.5,2103.4,7.9513]
[1617728592310,0.05,2104.0,2103.4,7.9513]
[1617728592510,0.05,2104.0,2103.8,2.90695]
[1617728592910,0.05,2104.0,2103.9,5.94]